Cogmind - Beta 12 @@@ ROGUE MODE // 2023.04.30 @ 23:38:59 Player: Red Box Result: Destroyed by as-30412 with Assembled Focal Cannon Performance ------------- Evolutions (3) 1500 Regions Visited (19) 3800 Robots Destroyed (351) 1755 Value Destroyed (13855) 13855 Prototype IDs (45) 900 Alien Tech Used (0) 0 Bonus (3911) 3911 TOTAL SCORE: 25721 Bonus ------- High Alert Combat Kills 1899 Follower Combat Kills 560 Entered Garrisons 600 Met Imprinter 300 Destroyed Z-Imprinter 1000 Friendly Fire -448 Cogmind --------- Core Integrity 0/700 Matter 275/300 Energy 290/290 System Corruption 0% Temperature Cool (18) Movement Treading (250) Ox1 Location -7/Deep Caves Parts ------- > --- POWER (1) -------- Reinforced Deuterium Engine > --- PROPULSION (2) --- Armored Medium Treads Armored Medium Treads > --- UTILITY (7) ------ Improved Cooling System High-capacity Storage Unit Mobile Refinery Mk. CCLXVII > --- WEAPON (3) ------- Lightning Gun Powered Hammer > --- INVENTORY (20) --- Zionite Light DM Reactor Armored Huge Wheel Improved Spread Laser Beamcaster Zionite Laser-S Zionite Phaser-S KE Penetrator Heavy Linear Accelerator Heavy Linear Accelerator Heavy Linear Accelerator Advanced EMP Blaster Rocket Launcher Precision Grenade Launcher Peak State ------------ > --- POWER ------------ Reinforced Deuterium Engine > --- PROPULSION ------- Armored Huge Wheel > --- UTILITY ---------- Improved Cooling System High-capacity Storage Unit Tactical Coordination Suite Zionite Light Carapace Medium Reactive Plating Mobile Refinery Mk. CCLXVII > --- WEAPON ----------- Zionite Phaser-S Heavy Linear Accelerator > --- INVENTORY -------- Zionite Light DM Reactor Armored Medium Treads Armored Medium Treads Armored Huge Wheel Encrypted Comm Array Lightning Gun Precision Shock Rifle Improved Spread Laser Beamcaster Zionite Laser-S KE Penetrator Heavy Linear Accelerator Heavy Linear Accelerator Advanced EMP Blaster Rocket Launcher Precision Grenade Launcher Powered Hammer [Rating: 72] Favorites ----------- Power Heavy Ion Engine Engine Heavy Ion Engine Power Core Enhanced Nuclear Core Propulsion Wheel Treads Armored Medium Treads Leg Aluminum Leg Wheel Wheel Utility High-capacity Storage Unit Device Improved Heat Sink Storage High-capacity Storage Unit Processor Improved Signal Interpreter Hackware Advanced System Shield Protection Hardened Heavy Armor Plating Weapon Advanced Beam Rifle Energy Gun Advanced Beam Rifle Energy Cannon Beam Cannon Ballistic Gun KE Penetrator Ballistic Cannon Heavy Linear Accelerator Launcher Rocket Launcher Special Weapon Mining Laser Impact Weapon Powered Hammer Piercing Weapon Lance Special Melee Weapon Datajack Build | -11 -10 -10 -9 -9 -9 -8 -8 -8 -8 -8 -8 -8 -7 -7 -7 -7 -7 -7 -7 ------- Run | Jun Mat Min Mat Min Exi Min Mat Gar Mat Gar Mat Sto Fac Gar Fac Low Low Zio Dee Slots Evolved 6 | . . . 2 . . . 2 . . . . . 2 . . . . . . Power . | . . . . . . . . . . . . . . . . . . . . Propulsion . | . . . . . . . . . . . . . . . . . . . . Utility 5 | . . . 2 . . . 1 . . . . . 2 . . . . . . Weapon 1 | . . . . . . . 1 . . . . . . . . . . . . Parts Attached 386 | 7 15 2 47 6 3 4 27 34 12 18 24 30 60 22 24 17 4 14 16 Power 24 | 1 1 . 1 . . 1 2 1 1 1 1 5 2 2 2 . . 3 . Engine 23 | 1 1 . 1 . . 1 2 1 1 1 1 5 1 2 2 . . 3 . Core 1 | . . . . . . . . . . . . . 1 . . . . . . Reactor . | . . . . . . . . . . . . . . . . . . . . Propulsion 36 | 2 4 . 3 . . . 3 5 2 4 3 . 1 . 3 . . . 6 Treads 8 | . . . . . . . . 1 . 3 . . . . . . . . 4 Leg 2 | 2 . . . . . . . . . . . . . . . . . . . Wheel 26 | . 4 . 3 . . . 3 4 2 1 3 . 1 . 3 . . . 2 Hover . | . . . . . . . . . . . . . . . . . . . . Flight . | . . . . . . . . . . . . . . . . . . . . Utility 124 | 2 4 1 15 2 1 1 8 5 4 8 7 7 28 2 12 8 2 4 3 Device 71 | 1 3 1 4 . . 1 2 1 2 6 3 2 21 2 11 7 1 2 1 Storage 8 | 1 1 . 1 1 1 . . . 1 . 2 . . . . . . . . Processor 8 | . . . . . . . 1 2 . . . 2 2 . . . . 1 . Hackware 3 | . . . . . . . 1 . . 1 . . 1 . . . . . . Protection 34 | . . . 10 1 . . 4 2 1 1 2 3 4 . 1 1 1 1 2 Artifact . | . . . . . . . . . . . . . . . . . . . . Weapon 202 | 2 6 1 28 4 2 2 14 23 5 5 13 18 29 18 7 9 2 7 7 Energy Gun 106 | 1 4 . 9 2 1 1 9 16 3 3 8 7 17 8 5 5 . 2 5 Energy Cannon 15 | . . 1 9 . . . . . 1 . . . 3 1 . . . . . Ballistic Gun 19 | 1 . . . . . . . . . . 1 8 3 1 . 1 1 3 . Ballistic Cannon 4 | . . . . . . . . . . 1 . . 2 . . . . 1 . Launcher 29 | . . . 5 2 . 1 2 6 . . 2 2 1 4 . 2 1 . 1 Special Weapon 2 | . 1 . 1 . . . . . . . . . . . . . . . . Impact Weapon 16 | . . . 2 . . . 2 1 . . . . 2 4 2 1 . 1 1 Slashing Weapon . | . . . . . . . . . . . . . . . . . . . . Piercing Weapon 5 | . . . . . . . . . 1 1 1 1 1 . . . . . . Special Melee Weapon 6 | . 1 . 2 . 1 . 1 . . . 1 . . . . . . . . Unidentified Prototypes 13 | . 1 . . . . . 3 . . . . 2 3 . . . . . 4 Corrupted Parts 3 | . . . . . . . . . . . . . . . . 2 . 1 . System Corruption 13 | . . . . . . . . . . . . . . . . 7 . 6 . Parts Lost 51 | . 1 . 6 1 . 2 2 9 2 6 4 1 2 3 1 2 . . 9 Power 4 | . . . 1 . . 1 . 1 . 1 . . . . . . . . . Propulsion 10 | . 1 . 1 . . . 1 4 . 2 . . . . . . . . 1 Utility 25 | . . . 4 1 . 1 . 2 2 2 1 1 2 1 1 1 . . 6 Weapon 12 | . . . . . . . 1 2 . 1 3 . . 2 . 1 . . 2 Highest Loss Streak 5 | . 1 . 1 1 . 1 1 4 1 4 1 1 1 3 1 2 . . 5 To Critical Strikes . | . . . . . . . . . . . . . . . . . . . . Average Slot Usage (%) 90 | . 98 100 96 100 100 97 99 99 98 99 82 87 84 83 83 82 84 79 75 Engine 8 | . 14 14 10 11 11 10 9 8 8 8 9 9 7 7 7 7 7 7 7 Wheel 13 | . 22 28 21 22 22 22 17 17 17 7 6 9 7 7 7 7 7 7 6 Device 13 | . 13 14 10 11 11 11 14 8 8 8 7 13 10 14 14 17 22 16 20 Storage 8 | . 14 14 11 11 11 11 9 9 9 9 9 9 7 7 7 7 7 7 7 Processor 4 | . . . . . . . 4 9 9 2 . 1 12 7 7 7 7 4 . Hackware 4 | . . . . . . . 7 9 9 15 11 9 7 7 7 4 . . . Protection 10 | . . . 19 22 22 20 9 8 9 9 8 9 7 7 7 8 7 15 15 Energy Gun 18 | . 24 14 9 21 11 21 26 25 26 25 22 18 18 16 22 19 15 11 3 Energy Cannon 1 | . . 13 9 . . . . . . . . . . . . . . . . Ballistic Gun 1 | . 1 . . . . . . . . . . 6 2 2 . . 6 2 . Naked Turns . | . . . . . . . . . . . . . . . . . . . . Heaviest Build 140 | 14 23 24 47 67 67 69 71 71 75 71 81 78 85 88 92 106 111 140 140 Greatest Support 54 | 20 20 20 20 20 20 20 32 32 28 54 47 28 28 28 28 28 28 28 54 Greatest Overweight (x) 5 | . 1 1 2 3 3 3 3 4 2 5 2 2 3 3 5 3 3 4 4 Average Overweight (x) 2 | . . 1 1 2 3 2 2 2 2 3 1 2 2 2 3 3 3 3 3 Largest Inventory Capacity 20 | 8 10 10 15 20 20 20 20 20 20 20 20 20 20 20 20 20 20 20 20 Average Capacity 18 | 7 9 10 14 18 20 20 20 20 20 20 20 20 20 20 20 20 20 20 20 Most Carried 20 | 8 10 10 15 20 20 20 20 20 20 20 20 20 20 20 20 20 20 20 20 Average Carried 17 | 5 8 9 13 17 19 19 19 19 19 18 19 19 19 19 19 19 19 19 19 Final Capacity 20 | 8 10 10 15 20 20 20 20 20 20 20 20 20 20 20 20 20 20 20 20 Final Carried 20 | 8 10 10 15 20 20 19 20 20 20 20 20 20 19 20 20 20 20 20 17 Class Distribution -------------------- 48% | Mutant 18% | Tank 12% | Skirmisher 10% | Gunner 4% | Commander-Mutant 3% | Hacker-Mutant Dominant Class ---------------- Mutant | -10/Materials Mutant | -10/Mines Mutant | -9/Materials Mutant | -9/Mines Commander-Mutant | -9/Exiles Mutant | -8/Mines Tank | -8/Materials Mutant | -8/Garrison Gunner | -8/Materials Hacker-Mutant | -8/Garrison Tank | -8/Materials Tank | -8/Storage Gunner | -7/Factory Mutant | -7/Garrison Skirmisher | -7/Factory Skirmisher | -7/Lower Caves Skirmisher | -7/Lower Caves Mutant | -7/Zion Tank | -7/Deep Caves Resources | -11 -10 -10 -9 -9 -9 -8 -8 -8 -8 -8 -8 -8 -7 -7 -7 -7 -7 -7 -7 ----------- Run | Jun Mat Min Mat Min Exi Min Mat Gar Mat Gar Mat Sto Fac Gar Fac Low Low Zio Dee Matter Collected 5154 | 274 157 20 494 102 . 99 280 374 120 237 307 503 665 431 250 196 109 140 396 Remotely . | . . . . . . . . . . . . . . . . . . . . Salvage Created 13446 | 109 497 101 1560 275 . 288 1551 919 1416 757 1517 1075 1110 784 842 508 49 . 88 Parts 726 | 7 26 3 122 20 . 17 87 39 80 41 79 55 32 49 35 27 5 . 2 Haulers Intercepted 15 | . 2 . 3 . . . 3 . 1 . 1 3 1 . 1 . . . . Recyclers Shooed 3 | . 1 . . . . . 1 . . . . . 1 . . . . . . Parts Field Recycled . | . . . . . . . . . . . . . . . . . . . . Retrieved Matter . | . . . . . . . . . . . . . . . . . . . . Parts Self-Destructed 27 | . . . . . . . . . . . . . . . . 20 5 2 . Prevented 8 | . . . . . . . . . . . . . . . . 8 . . . Kills | -11 -10 -10 -9 -9 -9 -8 -8 -8 -8 -8 -8 -8 -7 -7 -7 -7 -7 -7 -7 ------- Run | Jun Mat Min Mat Min Exi Min Mat Gar Mat Gar Mat Sto Fac Gar Fac Low Low Zio Dee Combat Hostiles Destroyed 284 | . 6 2 30 12 . 9 23 20 27 20 32 19 16 26 17 13 3 . 9 Melee 3 | . . . . . . . . . . 1 . . . . 2 . . . . Guns 174 | . 5 1 5 5 . 1 19 13 26 17 21 12 13 12 14 8 1 . 1 Cannons 24 | . . 1 16 . . . . . . 2 . . . . . . . . 5 AOE 71 | . . . 8 6 . 7 3 6 . . 9 7 1 14 . 5 2 . 3 Classes Destroyed 20 | 2 5 . 3 1 . 3 . 1 . . 2 . 1 . . . . . 2 Worker 10 | . 2 . 3 . . . 2 . . . 1 1 1 . . . . . . Builder 7 | . . . 3 . . . 1 . 1 . 1 . . . 1 . . . . Tunneler 3 | 2 . . . . . . 1 . . . . . . . . . . . . Hauler 15 | . 2 . 3 . . . 3 . 1 . 1 3 1 . 1 . . . . Recycler 8 | 1 1 . . 2 . . 2 . . . . 1 1 . . . . . . Mechanic 1 | . . . . . . . . . . . 1 . . . . . . . . Operator 2 | . . . 1 . . . . . 1 . . . . . . . . . . Watcher 24 | . 3 . 5 . . . 4 1 3 1 3 2 1 . 1 . . . . Swarmer 83 | . 2 . 9 9 . 3 6 3 5 7 7 4 1 18 2 4 3 . . Grunt 95 | . 4 2 11 1 . 4 8 10 9 6 14 5 8 3 7 3 . . . Brawler 6 | . . . . . . 1 . . 2 . . 1 . . 1 1 . . . Duelist 8 | . . . . . . 1 1 . 1 . 4 . . . . 1 . . . Protector 1 | . . . . . . . . . . . 1 . . . . . . . . Sentry 63 | . . . 10 . . . 7 2 9 5 5 9 6 2 5 3 . . . Demolisher 3 | . . . . 2 . . 1 . . . . . . . . . . . . Specialist 4 | . . . . . . . . 4 . . . . . . . . . . . Hunter 10 | . . . . . . 1 1 1 1 2 1 . . 3 . . . . . Programmer 4 | . . . . . . . . . . . . . 2 . 2 . . . . Z-Light 2 | . . . . . . . . . . . . . . . . . . . 2 Assembled 6 | . . . . . . . . . . . . . . . . . . . 6 Thug 1 | . . . . . . . . . . . . . . . . 1 . . . Best Kill Streak 11 | 3 5 2 11 5 . 6 8 5 5 4 9 5 3 8 6 6 3 . 3 Combat Bots Only 8 | . 4 2 6 3 . 6 6 4 4 4 7 4 2 8 5 6 3 . 3 Max Kills in Single Turn 5 | 1 2 2 4 3 . 3 2 4 1 2 2 5 2 4 2 4 2 . 2 Gunslinging 1 | . . . . . . . 1 . . 1 1 . . . . . . . . Exploded 4 | . . . 2 3 . 3 2 3 . . 2 4 1 4 . 4 2 . 2 Melee 1 | . . . . . . . . . . 1 . . . . 1 . . . . Uniques/NPCs Destroyed 1 | . . . . . . . . . . . . . . . . . . . 1 Z-Imprinter (-7/Deep Caves) Combat | -11 -10 -10 -9 -9 -9 -8 -8 -8 -8 -8 -8 -8 -7 -7 -7 -7 -7 -7 -7 -------- Run | Jun Mat Min Mat Min Exi Min Mat Gar Mat Gar Mat Sto Fac Gar Fac Low Low Zio Dee Damage Taken 13241 | . 309 102 1152 610 . 194 531 1002 776 989 1116 467 1256 1047 1015 511 80 . 2084 Core 1676 | . 43 34 267 71 . 12 65 126 112 80 114 43 168 138 84 40 . . 279 Absorbed by Shields 112 | . . . . . . . 74 . . 9 . 29 . . . . . . . Regen/Repaired (Parts) 1486 | . 20 . 8 . . . 204 . 450 . 380 226 12 . 186 . . . . Core Remaining (%) 45 | 100 . 69 . . . 12 . . . . . 1 . . . . . . . Volleys Fired 738 | 4 45 4 79 18 . 10 58 50 67 68 61 50 71 52 47 15 2 1 36 Largest 3 | 2 2 2 2 2 . 2 3 3 3 3 3 3 3 3 3 3 3 1 2 Hottest 385 | 70 100 110 120 122 . 122 183 172 183 183 183 171 185 235 385 225 186 33 158 Shots Fired 1638 | 8 85 8 147 36 . 19 167 96 170 125 167 110 188 100 113 39 8 1 51 Gun 1449 | 8 83 4 40 32 . 15 165 88 168 119 162 108 184 92 113 35 6 1 26 Cannon 134 | . . 4 97 . . . . . 2 6 . . 4 . . . . . 21 Launcher 53 | . . . 10 4 . 4 2 8 . . 5 2 . 8 . 4 2 . 4 Special 2 | . 2 . . . . . . . . . . . . . . . . . . Kinetic 114 | 4 12 . . . . . . . . 6 3 46 7 13 . 1 . 1 21 Thermal 1006 | 4 73 8 97 32 . 15 107 32 170 119 3 5 144 29 108 32 6 . 22 Explosive 32 | . . . 2 4 . 4 . 3 . . 5 1 . 6 . 1 2 . 4 Electromagnetic 486 | . . . 48 . . . 60 61 . . 156 58 37 52 5 5 . . 4 Robot Hit Streak 28 | 5 9 5 20 12 . 3 25 11 20 10 10 14 9 13 28 11 4 . 9 Robot Miss Streak 12 | . 4 2 5 3 . 2 5 2 2 3 4 4 6 3 5 8 12 . 10 Penetration Max . | . . . . . . . . . . . . . . . . . . . . Secondary Targets 22 | . . . . . . 1 6 1 2 5 4 . 2 . . 1 . . . Max Gunslinging Chain 1 | . . . . . . 1 1 1 1 1 1 . 1 . . 1 . . . Shots Hit Robots 984 | 5 51 5 96 21 4 10 106 53 110 61 101 55 106 54 92 27 3 . 24 Core Hits 631 | 4 21 3 62 13 . 15 56 44 49 32 67 39 43 45 57 49 6 . 26 Critical Kills . | . . . . . . . . . . . . . . . . . . . . Critical Parts Destroyed 3 | . . . . . . . . . . . . 2 . . 1 . . . . Critical Strikes 45 | . 6 1 . 3 . 1 2 . 3 8 4 3 8 1 1 1 . . 3 Burn 32 | . 6 1 . 3 . 1 2 . 3 8 . 1 7 . . . . . . Destroy 2 | . . . . . . . . . . . . 2 . . . . . . . Blast 3 | . . . . . . . . . . . . . . . . . . . 3 Corrupt 7 | . . . . . . . . . . . 4 . 1 1 . 1 . . . Smash 1 | . . . . . . . . . . . . . . . 1 . . . . Melee Attacks 100 | . 2 . 3 . 4 . 6 4 1 3 1 2 7 48 7 3 . 8 1 Impact 83 | . . . 3 . . . 3 4 . . . . 6 48 7 3 . 8 1 Slashing . | . . . . . . . . . . . . . . . . . . . . Piercing 8 | . . . . . . . . . 1 3 1 2 1 . . . . . . Sneak Attacks 9 | . 2 . . . 4 . 3 . . . . . . . . . . . . Combat Hostiles . | . . . . . . . . . . . . . . . . . . . . Follow-up Attacks . | . . . . . . . . . . . . . . . . . . . . Damage Inflicted 27565 | 65 611 90 2375 913 . 658 2477 1950 2442 1361 3765 1888 2399 2047 2214 1028 148 . 1134 Guns 18244 | 65 611 36 484 470 . 168 2257 1075 2442 1169 2254 1192 2312 928 1989 526 36 . 230 Cannons 2113 | . . 54 1207 . . . . . . 154 . . . . . . . . 698 Explosions 6911 | . . . 684 443 . 490 220 875 . . 1511 696 87 1119 . 494 112 . 180 Melee 289 | . . . . . . . . . . 38 . . . . 225 . . . 26 Ramming 8 | . . . . . . . . . . . . . . . . 8 . . . Kinetic 1681 | 15 64 . . . . . . . . 154 47 447 74 182 . . . . 698 Thermal 14299 | 50 547 90 1388 556 . 256 1516 233 2442 1169 668 374 1885 430 1918 553 36 . 188 Explosive 4021 | . . . 205 357 . 402 . 446 . . 862 264 . 933 . 260 112 . 180 Electromagnetic 7267 | . . . 782 . . . 961 1271 . . 2188 803 440 502 71 207 . . 42 Impact 251 | . . . . . . . . . . . . . . . 225 . . . 26 Slashing . | . . . . . . . . . . . . . . . . . . . . Piercing 38 | . . . . . . . . . . 38 . . . . . . . . . Highest Corruption 7 | . . . . . . . . . . . . . 7 1 2 5 5 6 . Average Corruption 3 | . . . . . . . . . . . . . 4 1 1 4 5 5 . Corruption Purged 13 | . . . . . . . . . . . . . 7 . 4 2 . . . Corruption Blocked . | . . . . . . . . . . . . . . . . . . . . Effects 120 | . . . . . . . . . . . . . 46 25 5 3 39 2 . Message Errors 31 | . . . . . . . . . . . . . 12 5 1 1 12 . . Matter Fused 26 | . . . . . . . . . . . . . 10 7 1 1 6 1 . Heat Flow Errors 14 | . . . . . . . . . . . . . 5 2 . . 7 . . Energy Discharges 16 | . . . . . . . . . . . . . 7 3 . . 5 1 . Parts Fused 2 | . . . . . . . . . . . . . . . . . 2 . . Data Loss (minor) 13 | . . . . . . . . . . . . . 7 1 1 . 4 . . Data Loss (major) 7 | . . . . . . . . . . . . . 1 3 2 . 1 . . Misfires 9 | . . . . . . . . . . . . . 2 4 . 1 2 . . Alerts 1 | . . . . . . . . . . . . . 1 . . . . . . Weapon Failures 1 | . . . . . . . . . . . . . 1 . . . . . . Overload Shots 13 | . . . . . . . . . . . . . . . 13 . . . . Effects 1 | . . . . . . . . . . . . . . . 1 . . . . Energy Bleed 1 | . . . . . . . . . . . . . . . 1 . . . . Overflow Damage 260 | . . . 32 15 . 1 . 7 . . 24 14 . 3 47 . . . 117 Projectiles 119 | . . . 23 . . . . . . . . . . . . . . . 96 Explosions 73 | . . . 9 15 . 1 . 7 . . 24 14 . 3 . . . . . Melee 68 | . . . . . . . . . . . . . . . 47 . . . 21 Knockbacks 6 | . . . . . . . . . . 1 . . . . . . . . 5 Impact 1 | . . . . . . . . . . . . . . . . . . . 1 Kinetic 5 | . . . . . . . . . . 1 . . . . . . . . 4 Secondary . | . . . . . . . . . . . . . . . . . . . . Self-Inflicted Damage 565 | . . . 36 . . 41 56 105 . . 135 . . 80 . 40 . . 72 Shots 23 | . . . 2 . . 3 2 4 . . 3 . . 4 . 3 . . 2 Rammed 1 | . . . . . . . . . . . . . . . . 1 . . . Targets Rammed 1 | . . . . . . . . . . . . . . . . 1 . . . Kicked . | . . . . . . . . . . . . . . . . . . . . Crushed . | . . . . . . . . . . . . . . . . . . . . Highest Temperature 789 | 40 315 129 279 150 . 60 196 173 361 789 435 158 659 213 535 279 243 . 186 Average Temperature 108 | 19 97 79 80 55 . 23 77 67 104 176 111 53 148 50 161 128 80 . 59 Received Heat Transfer 3607 | . 123 54 330 57 . 75 132 315 270 363 369 147 315 42 339 174 . . 502 Effects 48 | . . . 3 . . . . . 4 22 4 . 8 . 7 . . . . Shutdowns 9 | . . . . . . . . . . 5 1 . 1 . 2 . . . . Energy Bleed 10 | . . . . . . . . . . 4 2 . 3 . 1 . . . . Interference 14 | . . . 3 . . . . . 4 5 . . . . 2 . . . . Matter Decay 1 | . . . . . . . . . . 1 . . . . . . . . . Short Circuit 6 | . . . . . . . . . . 2 . . 3 . 1 . . . . Damage (minor) 4 | . . . . . . . . . . 1 1 . 1 . 1 . . . . Damage (major) 4 | . . . . . . . . . . 4 . . . . . . . . . Siege Activations . | . . . . . . . . . . . . . . . . . . . . Robots Corrupted 4 | . . . 1 . . . . 1 . . 2 . . . . . . . . Combat Hostiles 4 | . . . 1 . . . . 1 . . 2 . . . . . . . . Parts Fried 30 | . . . 3 . . . 7 3 . . 11 3 2 1 . . . . . Impact Corruptions 2 | . . . . . . . . . . . . . . . 1 . . . 1 Robots Melted 8 | . 1 . . 1 . 1 1 . 1 . . . 2 . 1 . . . . Combat Hostiles 8 | . 1 . . 1 . 1 1 . 1 . . . 2 . 1 . . . . Parts Melted 62 | . 3 1 4 3 . 5 5 . 12 7 1 . 10 . 10 . . . 1 Heat Transferred 26411 | 148 2072 296 2829 1136 . 520 2640 248 4403 2491 737 535 3874 580 3290 475 30 . 107 Parts Sabotaged . | . . . . . . . . . . . . . . . . . . . . Parts Stolen . | . . . . . . . . . . . . . . . . . . . . Parts Stripped . | . . . . . . . . . . . . . . . . . . . . Power Chain Reactions 23 | . . . 6 . . . 3 1 . . 6 3 1 2 . 1 . . . Missiles Intercepted . | . . . . . . . . . . . . . . . . . . . . Alert | -11 -10 -10 -9 -9 -9 -8 -8 -8 -8 -8 -8 -8 -7 -7 -7 -7 -7 -7 -7 ------- Run | Jun Mat Min Mat Min Exi Min Mat Gar Mat Gar Mat Sto Fac Gar Fac Low Low Zio Dee Peak Influence 1545 | 15 209 65 540 388 . 239 510 1050 690 1115 1012 742 482 1545 882 . . . . Initial 810 | . 9 15 . 105 . . 57 161 511 313 543 308 190 184 810 . . . . Average 412 | 4 31 44 280 202 . 97 257 639 530 759 710 499 267 792 706 . . . . Maximum Alert Level 4 | . 1 . 2 1 . 1 2 3 2 4 3 3 2 4 3 . . . . Low Security (%) 23 | 100 99 100 20 70 . 75 22 4 . . . . 9 5 . . . . . Level 1 33 | . . . 67 29 . 24 67 28 4 9 . 19 84 4 . . . . . Level 2 25 | . . . 11 . . . 10 19 95 25 41 66 6 44 42 . . . . Level 3 15 | . . . . . . . . 47 . 58 58 13 . 19 57 . . . . Level 4 2 | . . . . . . . . . . 6 . . . 26 . . . . . Level 5 . | . . . . . . . . . . . . . . . . . . . . High Security . | . . . . . . . . . . . . . . . . . . . . Max Security . | . . . . . . . . . . . . . . . . . . . . Squads Dispatched 38 | . 1 . 3 . . . 3 . 6 . 7 3 7 . 8 . . . . Investigation 12 | . 1 . 3 . . . . . 1 . 2 1 2 . 2 . . . . Extermination 5 | . . . . . . . . . . . . . 2 . 3 . . . . Reinforcement 8 | . . . . . . . . . 2 . 2 1 2 . 1 . . . . Assault 7 | . . . . . . . . . 2 . 3 1 1 . . . . . . Garrison 6 | . . . . . . . 3 . 1 . . . . . 2 . . . . Intercept . | . . . . . . . . . . . . . . . . . . . . Searches Triggered . | . . . . . . . . . . . . . . . . . . . . Construction Impeded 2 | . . . . . . . . . 1 . 1 . . . . . . . . Haulers Reinforced 1 | . . . . . . . . . . . . . . . 1 . . . . Active Scanning Responses . | . . . . . . . . . . . . . . . . . . . . Cargo Convoy Interrupts . | . . . . . . . . . . . . . . . . . . . . Stealth | -11 -10 -10 -9 -9 -9 -8 -8 -8 -8 -8 -8 -8 -7 -7 -7 -7 -7 -7 -7 --------- Run | Jun Mat Min Mat Min Exi Min Mat Gar Mat Gar Mat Sto Fac Gar Fac Low Low Zio Dee Distress Signals 16 | . 1 . 2 . . . 3 1 3 . 1 3 1 . 1 . . . . Communications Jammed 1 | . . . . . . . . . . . . . . . 1 . . . . Distress Signals 1 | . . . . . . . . . . . . . . . 1 . . . . Times Spotted 396 | . 17 2 40 15 . 11 40 23 47 21 49 32 26 28 20 13 3 . 9 Peak Tracking Total 8 | . 8 2 4 4 . 4 5 5 5 4 5 6 4 8 3 5 3 . 3 Tactical Retreats 15 | . . . 1 . . . 5 . 1 1 2 2 2 1 . . . . . Traps | -11 -10 -10 -9 -9 -9 -8 -8 -8 -8 -8 -8 -8 -7 -7 -7 -7 -7 -7 -7 ------- Run | Jun Mat Min Mat Min Exi Min Mat Gar Mat Gar Mat Sto Fac Gar Fac Low Low Zio Dee Traps Triggered 26 | . . . 1 . . . . 4 . 2 . 1 6 9 3 . . . . Indirectly . | . . . . . . . . . . . . . . . . . . . . Trap Hack Attempts 315 | . 167 . 142 . . . . . . . 6 . . . . . . . . Triggered 1 | . . . 1 . . . . . . . . . . . . . . . . Disarmed 27 | . 8 . 8 . . . . . 6 . 5 . . . . . . . . Reprogrammed 13 | . 9 . 4 . . . . . . . . . . . . . . . . Reused 1 | . 1 . . . . . . . . . . . . . . . . . . Traps Extracted . | . . . . . . . . . . . . . . . . . . . . Installed . | . . . . . . . . . . . . . . . . . . . . Triggered 1 | . 1 . . . . . . . . . . . . . . . . . . Machines | -11 -10 -10 -9 -9 -9 -8 -8 -8 -8 -8 -8 -8 -7 -7 -7 -7 -7 -7 -7 ---------- Run | Jun Mat Min Mat Min Exi Min Mat Gar Mat Gar Mat Sto Fac Gar Fac Low Low Zio Dee Machines Disabled 44 | . . . 2 1 . 2 1 6 3 5 4 7 2 9 . 1 . . 1 Max in Single Turn 2 | . . . 1 1 . 2 1 1 1 1 1 1 1 1 . 1 . . 1 Garrison Access 3 | . . . . . . . . . . . . 1 1 . 1 . . . . Garrison Relay 12 | . . . . . . . . 5 . 3 . . . 4 . . . . . Machines Repaired . | . . . . . . . . . . . . . . . . . . . . Machines Sabotaged . | . . . . . . . . . . . . . . . . . . . . Overloaded Fab Kills . | . . . . . . . . . . . . . . . . . . . . Hacking | -11 -10 -10 -9 -9 -9 -8 -8 -8 -8 -8 -8 -8 -7 -7 -7 -7 -7 -7 -7 --------- Run | Jun Mat Min Mat Min Exi Min Mat Gar Mat Gar Mat Sto Fac Gar Fac Low Low Zio Dee Machines Accessed 130 | . 11 . 18 1 1 1 17 2 13 3 13 15 17 3 15 . . . . Terminals 85 | . 8 . 12 1 . 1 11 2 8 3 9 11 8 3 8 . . . . Fabricators 2 | . . . . . . . . . . . . . 2 . . . . . . Repair Stations 14 | . 1 . 2 . . . 2 . 2 . 1 2 2 . 2 . . . . Recycling Units 13 | . 2 . 2 . . . 1 . 1 . 2 1 2 . 2 . . . . Scanalyzers 9 | . . . 2 . . . 2 . 1 . 1 . 2 . 1 . . . . Garrison Access 6 | . . . . . . . 1 . 1 . . 1 1 . 2 . . . . Total Hacks 483 | . 36 . 62 4 1 5 62 5 51 10 58 67 56 10 56 . . . . Successful 278 | . 21 . 37 1 1 . 42 4 38 3 37 36 31 4 23 . . . . Failed 203 | . 14 . 25 3 . 5 19 1 13 7 21 31 25 6 33 . . . . Catastrophic 24 | . . . 2 . . . . . 1 1 1 4 3 3 9 . . . . Database Lockouts 2 | . 1 . . . . . 1 . . . . . . . . . . . . Manual 225 | . 30 . 28 4 . 6 33 2 19 4 23 29 23 3 21 . . . . Terminals 315 | . 28 . 34 4 . 5 41 5 29 10 36 52 24 10 37 . . . . Fabricators 10 | . . . . . . . . . . . . . 10 . . . . . . Repair Stations 53 | . 2 . 5 . . . 7 . 12 . 5 6 10 . 6 . . . . Recycling Units 47 | . 6 . 11 . . . 4 . 3 . 6 6 7 . 4 . . . . Scanalyzers 42 | . . . 12 . . . 6 . 6 . 11 . 4 . 3 . . . . Garrison Access 15 | . . . . . . . 4 . 1 . . 3 1 . 6 . . . . Terminal Hacks 103 | . 9 . 11 1 1 . 16 2 10 2 12 18 7 2 12 . . . . Record 1 | . . . . . 1 . . . . . . . . . . . . . . Part Schematic 5 | . . . . . . . . . . . . 4 . . 1 . . . . Robot Schematic 1 | . . . . 1 . . . . . . . . . . . . . . . Robot Analysis 25 | . 6 . 5 . . . 7 . . . . 1 3 . 3 . . . . Prototype ID Bank 10 | . . . 1 . . . 3 . 1 . 2 1 . . 2 . . . . Open Door 4 | . . . . . . . . . . . . 3 . 1 . . . . . Open DSF 1 | . . . . . . . . . . . . . 1 . . . . . . Branch Access Points 4 | . . . 1 . . . 1 . . . 1 . . . 1 . . . . Emergency Access Points 3 | . . . . . . . . 1 . 1 . . . 1 . . . . . Terminal Index 7 | . 1 . 1 . . . . . 1 . 1 1 1 . 1 . . . . Repair Station Index 1 | . . . . . . . 1 . . . . . . . . . . . . Garrison Index 1 | . . . . . . . . . . . . . . . 1 . . . . Alert Level 1 | . . . . . . . . . . . . 1 . . . . . . . Unreport Threat 13 | . . . 1 . . . 1 . 3 . 3 3 1 . 1 . . . . Locate Traps 9 | . 2 . . . . . . . 1 . 1 2 1 . 2 . . . . Disarm Traps 2 | . . . . . . . . . 1 . 1 . . . . . . . . Security Status 5 | . . . . . . . 1 . 2 . 1 1 . . . . . . . Recall Investigation 1 | . . . . . . . . . . . 1 . . . . . . . . Hauler Manifests 6 | . . . 2 . . . 1 . 1 . 1 1 . . . . . . . Registered Components 1 | . . . . . . . 1 . . . . . . . . . . . . Garrison Registry 2 | . . . . . . . . 1 . 1 . . . . . . . . . Fabricator Hacks 4 | . . . . . . . . . . . . . 4 . . . . . . Network Status 1 | . . . . . . . . . . . . . 1 . . . . . . Load Schematic 1 | . . . . . . . . . . . . . 1 . . . . . . Build 2 | . . . . . . . . . . . . . 2 . . . . . . Repair Station Hacks 36 | . 2 . 3 . . . 5 . 12 . 3 4 4 . 3 . . . . Scan Component 21 | . 1 . 2 . . . 3 . 6 . 2 2 3 . 2 . . . . Repair 15 | . 1 . 1 . . . 2 . 6 . 1 2 1 . 1 . . . . Recycling Unit Hacks 12 | . 1 . 3 . . . 1 . 2 . 2 1 2 . . . . . . Report Inventory 9 | . . . 2 . . . 1 . 1 . 2 1 2 . . . . . . Retrieve Components 3 | . 1 . 1 . . . . . 1 . . . . . . . . . . Scanalyzer 34 | . . . 10 . . . 3 . 6 . 11 . 3 . 1 . . . . Insert Component 18 | . . . 5 . . . 2 . 3 . 5 . 2 . 1 . . . . Analyze 16 | . . . 5 . . . 1 . 3 . 6 . 1 . . . . . . Garrison Access Hacks 5 | . . . . . . . 1 . 1 . . 1 1 . 1 . . . . Unlock Access 3 | . . . . . . . 1 . 1 . . . 1 . . . . . . Seal Access 2 | . . . . . . . . . . . . 1 . . 1 . . . . Unauthorized Hacks 84 | . 9 . 10 . . . 16 2 7 1 9 12 10 2 6 . . . . Terminals 58 | . 7 . 5 . . . 10 2 6 1 9 7 3 2 6 . . . . Track 11 | . . . . . . . 3 . 1 . 4 1 . 1 1 . . . . Assimilate 9 | . 3 . 1 . . . 2 . 1 . . 1 . . 1 . . . . Botnet 31 | . 3 . 3 . . . 4 2 3 1 4 4 3 1 3 . . . . Operators 7 | . 1 . 1 . . . 1 . 1 . 1 1 . . 1 . . . . Fabricators 5 | . . . . . . . . . . . . . 5 . . . . . . Report 1 | . . . . . . . . . . . . . 1 . . . . . . Prioritize 1 | . . . . . . . . . . . . . 1 . . . . . . Liberate 1 | . . . . . . . . . . . . . 1 . . . . . . Haulers 2 | . . . . . . . . . . . . . 2 . . . . . . Repair Stations . | . . . . . . . . . . . . . . . . . . . . Recycling Units 17 | . 2 . 5 . . . 3 . 1 . . 4 2 . . . . . . Monitor 1 | . . . . . . . . . . . . 1 . . . . . . . Reject 4 | . . . 1 . . . 1 . . . . 1 1 . . . . . . Recyclers 3 | . . . 1 . . . 1 . . . . 1 . . . . . . . Mask 7 | . 1 . 2 . . . 1 . 1 . . 1 1 . . . . . . Tunnel 2 | . 1 . 1 . . . . . . . . . . . . . . . . Scanalyzers . | . . . . . . . . . . . . . . . . . . . . Garrison Access 4 | . . . . . . . 3 . . . . 1 . . . . . . . Broadcast 1 | . . . . . . . 1 . . . . . . . . . . . . Decoy 1 | . . . . . . . 1 . . . . . . . . . . . . Watchers 2 | . . . . . . . 1 . . . . 1 . . . . . . . Data Cores Recovered 2 | . . . . . . . . . 1 . . 1 . . . . . . . Used 2 | . . . . . . . . . 1 . . 1 . . . . . . . Hacking Detections 117 | . 11 . 18 1 . 1 16 2 12 3 13 9 15 2 14 . . . . Full Trace Events 12 | . 1 . . . . 1 1 . 1 1 2 1 1 1 2 . . . . Feedback Events . | . . . . . . . . . . . . . . . . . . . . Feedback Blocked . | . . . . . . . . . . . . . . . . . . . . Robot Schematics Acquired 5 | . . . . 1 . . . . . . . . . . . . . 4 . Robots Built 2 | . . . . . . . . . . . . . 2 . . . . . . Authchips 1 | . . . . . . . . . . . . . 1 . . . . . . Time 49 | . . . . . . . . . . . . . 49 . . . . . . Total Robot Build Rating 4 | . . . . . . . . . . . . . 4 . . . . . . Part Schematics Acquired 30 | . . . 3 . . . . . 3 . 5 4 1 . 1 . . 13 . Parts Built 1 | . . . . . . . . . . . . . 1 . . . . . . Authchips . | . . . . . . . . . . . . . . . . . . . . Time 95 | . . . . . . . . . . . . . 95 . . . . . . Total Part Build Rating 5 | . . . . . . . . . . . . . 5 . . . . . . Parts Repaired 15 | . 1 . 1 . . . 2 . 6 . 1 2 1 . 1 . . . . Time 639 | . 38 . 19 . . . 92 . 264 . 78 82 44 . 22 . . . . Parts Recycled . | . . . . . . . . . . . . . . . . . . . . Recycled Matter . | . . . . . . . . . . . . . . . . . . . . Retrieved Matter . | . . . . . . . . . . . . . . . . . . . . Retrieved Components 3 | . . . 2 . . . . . 1 . . . . . . . . . . Parts Scanalyzed 14 | . . . 3 . . . 1 . 2 . 5 . 2 . 1 . . . . Part Schematics Acquired 12 | . . . 3 . . . . . 3 . 5 . 1 . . . . . . Parts Damaged . | . . . . . . . . . . . . . . . . . . . . Bothacking | -11 -10 -10 -9 -9 -9 -8 -8 -8 -8 -8 -8 -8 -7 -7 -7 -7 -7 -7 -7 ------------ Run | Jun Mat Min Mat Min Exi Min Mat Gar Mat Gar Mat Sto Fac Gar Fac Low Low Zio Dee Used RIF Installer . | . . . . . . . . . . . . . . . . . . . . Robots Hacked 5 | . 1 . . . 4 . . . . . . . . . . . . . . Non-combat 4 | . 1 . . . 3 . . . . . . . . . . . . . . Combat 1 | . . . . . 1 . . . . . . . . . . . . . . Robot Hacks Applied 5 | . 1 . . . 4 . . . . . . . . . . . . . . parse_system 5 | . 1 . . . 4 . . . . . . . . . . . . . . Relay Couplers Released 51 | . . . . . . . . 22 . 12 . . 2 15 . . . . . Machine Destruction 51 | . . . . . . . . 22 . 12 . . 2 15 . . . . . Fabnet Peak Effective % . | . . . . . . . . . . . . . . . . . . . . Robots Rewired 1 | . . . . . . . 1 . . . . . . . . . . . . Allies Hacked . | . . . . . . . . . . . . . . . . . . . . Hacks Repelled . | . . . . . . . . . . . . . . . . . . . . Allies | -11 -10 -10 -9 -9 -9 -8 -8 -8 -8 -8 -8 -8 -7 -7 -7 -7 -7 -7 -7 -------- Run | Jun Mat Min Mat Min Exi Min Mat Gar Mat Gar Mat Sto Fac Gar Fac Low Low Zio Dee Total Allies 31 | . 1 . 1 3 . . 3 . 1 . . 11 8 2 1 . . . . Largest Group 11 | . 1 1 1 4 4 4 3 3 1 . . 11 4 2 2 . . . . Highest-Rated Group 266 | . 10 10 10 50 50 50 42 29 10 . . 266 93 51 51 . . . . Highest-Rated Ally 100 | . 10 10 10 16 16 16 16 10 10 . . 100 93 31 31 . . . . Total Orders 83 | . 3 2 22 3 . 2 19 18 3 . . . 4 . 7 . . . . STAY 37 | . 2 1 11 2 . 1 5 9 2 . . . 1 . 3 . . . . FOLLOW 34 | . 1 1 11 1 . 1 6 9 1 . . . 1 . 2 . . . . DROP 2 | . . . . . . . 2 . . . . . . . . . . . . PICKUP 2 | . . . . . . . 2 . . . . . . . . . . . . COLLECT 4 | . . . . . . . 4 . . . . . . . . . . . . EXPLORE 4 | . . . . . . . . . . . . . 2 . 2 . . . . Ally Attacks 135 | . . . . 12 . 19 30 . . . . 34 33 2 5 . . . . Total Damage 2344 | . . . . 122 . 222 275 . . . . 1051 524 41 109 . . . . Kills 25 | . . . . 1 . 2 2 . . . . 11 8 1 . . . . . Allies Corrupted 1 | . . . . . . . . . . . . . 1 . . . . . . Allies Melted . | . . . . . . . . . . . . . . . . . . . . Intel | -11 -10 -10 -9 -9 -9 -8 -8 -8 -8 -8 -8 -8 -7 -7 -7 -7 -7 -7 -7 ------- Run | Jun Mat Min Mat Min Exi Min Mat Gar Mat Gar Mat Sto Fac Gar Fac Low Low Zio Dee Robot Analysis Total 24 | . 6 . 5 . . . 6 . . . . 1 3 . 3 . . . . Derelict Logs Recovered 8 | . . 1 . 2 . . . . . . . . . . . 3 2 . . Drone Launches 4 | . . . . . . . . . . . . . 2 . 2 . . . . Drone Recoveries 2 | . . . . . . . . . . . . . 1 . 1 . . . . Exploration | -11 -10 -10 -9 -9 -9 -8 -8 -8 -8 -8 -8 -8 -7 -7 -7 -7 -7 -7 -7 ------------- Run | Jun Mat Min Mat Min Exi Min Mat Gar Mat Gar Mat Sto Fac Gar Fac Low Low Zio Dee Turns Passed 33258 | 88 2247 405 3833 1200 612 773 2690 1422 1760 1340 1542 1643 2946 2153 1614 1986 1671 2057 1276 Spaces Moved 20556 | 54 1292 403 2828 860 477 584 1607 933 815 606 825 1007 1814 1256 863 1298 1140 1299 595 Core 9 | 9 . . . . . . . . . . . . . . . . . . . Treads 355 | . . . . . . . . . . 167 143 . . . . . . . 45 Legs 309 | 45 264 . . . . . . . . . . . . . . . . . . Wheels 19883 | . 1028 403 2828 860 477 584 1607 933 815 439 682 1007 1814 1256 863 1298 1140 1299 550 Hover . | . . . . . . . . . . . . . . . . . . . . Flight . | . . . . . . . . . . . . . . . . . . . . Fastest Speed 50 | 50 80 95 95 110 125 110 120 115 125 125 130 130 130 130 130 145 145 145 130 Average Speed 130 | 108 94 95 106 121 125 122 127 127 125 182 149 130 131 141 145 145 145 148 172 Slowest Speed 330 | 120 190 95 110 125 125 125 130 160 125 250 245 130 145 145 175 145 145 160 330 Overloaded Moves . | . . . . . . . . . . . . . . . . . . . . Propulsion Burnouts . | . . . . . . . . . . . . . . . . . . . . Robots Hopped . | . . . . . . . . . . . . . . . . . . . . Cave-ins Triggered . | . . . . . . . . . . . . . . . . . . . . Exploration Rate (%) 77 | 5 99 93 99 98 87 98 79 82 68 83 51 94 44 88 25 99 95 87 68 Regions Visited 19 Branch Regions 9 Pre-discovered Areas 7 | . 1 . 1 1 1 . . . . . . . . . . 2 . 1 . Known Exits Taken 9 | . . . 1 . . . 1 . 1 . 1 . 1 . 1 1 1 1 . Unknown Exits Taken 7 | 1 1 1 . 1 1 1 . . . . . 1 . . . . . . . Scrap Searched 18 | . . . . 3 . 1 . . . . . . . . . 4 6 4 . Spaces Dug 89 | . 2 . 3 . . . 3 3 7 . 1 2 13 17 11 3 . 2 22 Terrain Destroyed 418 | . 2 . 32 54 . 54 17 4 7 . 70 36 15 39 12 28 13 2 33 Melee 40 | . . . 3 . . . 3 2 1 . 1 2 6 17 . 3 . 2 . Projectile 46 | . 2 . . . . . . 1 6 . . . 7 . 12 3 . . 15 AOE 332 | . . . 29 54 . 54 14 1 . . 69 34 2 22 . 22 13 . 18 Terrain Rammed . | . . . . . . . . . . . . . . . . . . . . Walls Destroyed . | . . . . . . . . . . . . . . . . . . . . Machines Disabled . | . . . . . . . . . . . . . . . . . . . . Actions | -11 -10 -10 -9 -9 -9 -8 -8 -8 -8 -8 -8 -8 -7 -7 -7 -7 -7 -7 -7 --------- Run | Jun Mat Min Mat Min Exi Min Mat Gar Mat Gar Mat Sto Fac Gar Fac Low Low Zio Dee Total 25366 | 72 2230 417 3482 977 491 622 2113 1070 1416 731 997 1263 2205 1465 1106 1359 1154 1413 783 Wait 2775 | . 688 7 328 81 5 24 373 . 511 10 48 140 182 18 141 16 4 74 125 Move 20536 | 53 1291 402 2827 859 476 583 1606 931 815 604 824 1006 1814 1254 862 1297 1139 1298 595 Hop . | . . . . . . . . . . . . . . . . . . . . Pick Up 183 | 8 10 1 27 9 1 1 21 13 6 9 13 10 22 5 10 6 2 5 4 Fast Attach 87 | 7 3 . 12 . . . 2 2 5 1 7 12 14 4 7 1 . 8 2 Attach 91 | . 4 1 9 1 . 2 6 10 2 6 7 5 13 4 5 3 1 2 10 Detach 17 | . 1 . 1 . . . 1 1 . . 1 2 3 2 . . . 2 3 Swap 208 | . 8 1 26 5 3 2 19 22 5 11 10 13 33 14 12 13 3 4 4 Drop 192 | . 11 1 28 4 2 . 18 5 4 3 19 23 30 8 15 4 3 11 3 Fire 738 | 4 45 4 79 18 . 10 58 50 67 68 61 50 71 52 47 15 2 1 36 Melee 100 | . 2 . 3 . 4 . 6 4 1 3 1 2 7 48 7 3 . 8 1 Ram 1 | . . . . . . . . . . . . . . . . 1 . . . Kick . | . . . . . . . . . . . . . . . . . . . . Crush . | . . . . . . . . . . . . . . . . . . . . Escape Stasis 120 | . . . . . . . . 32 . 16 . . 16 56 . . . . . Rewire 3 | . . . . . . . 3 . . . . . . . . . . . . Trap 315 | . 167 . 142 . . . . . . . 6 . . . . . . . . Miscellaneous . | . . . . . . . . . . . . . . . . . . . . Route ------- -11/Junkyard -10/Materials (discovered 5 exits: *Mat x3 / [*Min x2]) -10/Mines (discovered 2 exits: *Mat x2) -9/Materials (discovered 4 exits: *Mat x3 / *Min) -9/Mines (discovered 4 exits: *Mat x2 / *Exi / *Zio) -9/Exiles -8/Mines (discovered 2 exits: *Mat x2) -8/Materials (discovered 5 exits: *Fac x2 / *Sto x2 / Gar) -8/Garrison (discovered 4 exits: *Mat x4) -8/Materials (discovered 4 exits: *Fac x2 / *Sto / Gar) -8/Garrison (discovered 3 exits: *Mat x3) -8/Materials (discovered 2 exits: *Fac / *Sto) -8/Storage -7/Factory (discovered 5 exits: *Fac x2 / *Low x2 / Gar) -7/Garrison (discovered 3 exits: *Fac x3) -7/Factory (discovered 3 exits: *Fac / *Low x2) -7/Lower Caves -7/Lower Caves (discovered 2 exits: *Fac / *Zio) -7/Zion (discovered 2 exits: *Dee / [*Pro]) -7/Deep Caves (discovered 1 exit: [*Pro]) History --------- Turn | Location | Event 6 | -11/Junkyard | Discovered new exit (range 16) 89 | -11/Junkyard | Entered Materials 206 | -10/Materials | Discovered new exit (range 5) 311 | -10/Materials | Build established: Mutant 313 | -10/Materials | Discovered new exit (range 4) 450 | -10/Materials | Discovered new exit (range 9) 581 | -10/Materials | Discovered new exit (range 13) 774 | -10/Materials | Discovered new exit (range 15) 1847 | -10/Materials | Repaired Imp. Terrain Scanner 1965 | -10/Materials | Central database locked down 2336 | -10/Materials | Entered Mines 2336 | -10/Mines | Accompanied by 1 ally 2343 | -10/Mines | Received a Rocket Launcher from a helpful Derelict 2470 | -10/Mines | Found a hidden stash of uninstalled traps 2561 | -10/Mines | Discovered new exit (range 16) 2650 | -10/Mines | Discovered new exit (range 4) 2705 | -10/Mines | Learned Materials stockpile data 2741 | -10/Mines | Entered Materials 2741 | -9/Materials | Accompanied by 1 ally 2741 | -9/Materials | Evolved 2 slots: Utility x2 2838 | -9/Materials | Discovered new exit (range 7) 3186 | -9/Materials | Discovered new exit (range 15) 3356 | -9/Materials | Discovered new exit (range 16) 3778 | -9/Materials | Core integrity fell below 50% 3843 | -9/Materials | Discovered new exit (range 13) 4347 | -9/Materials | Identified exit to Mines 5569 | -9/Materials | Repaired Imp. Heat Sink 6574 | -9/Materials | Entered Mines 6574 | -9/Mines | Accompanied by 1 ally 6575 | -9/Mines | Learned location of Storage (-8) 6663 | -9/Mines | Deemed a non-threat by the Exiles lab entrance 6663 | -9/Mines | Discovered new exit (range 5) 6827 | -9/Mines | Assembled infested the area 6867 | -9/Mines | Core integrity fell below 20% 6894 | -9/Mines | Found a damaged Exp. Sensor Array with a note attached 6896 | -9/Mines | Found Prototype Device 6901 | -9/Mines | Discovered new exit (range 10) 6906 | -9/Mines | A Derelict revealed a hidden shortcut to a safe place 6930 | -9/Mines | Learned Materials terminal intel 6948 | -9/Mines | Discovered new exit (range 15) 7211 | -9/Mines | Assisted by bots powering up and referring to "LRC-V3" 7508 | -9/Mines | Build established: Commander-Mutant 7774 | -9/Mines | Entered Exiles 7774 | -9/Exiles | Accompanied by 4 allies 7811 | -9/Exiles | Met 8R-AWN 7828 | -9/Exiles | Met EX-HEX 7919 | -9/Exiles | Met EX-DEC 7924 | -9/Exiles | Learned location of Zion (-7) 7970 | -9/Exiles | Met EX-BIN 8212 | -9/Exiles | Visited The Gauntlet 8365 | -9/Exiles | Discovered new exit (range 12) 8386 | -9/Exiles | Entered Mines 8386 | -8/Mines | Accompanied by 4 allies 8556 | -8/Mines | Discovered new exit (range 6) 8886 | -8/Mines | Build established: Mutant 8906 | -8/Mines | Discovered new exit (range 5) 9159 | -8/Mines | Entered Materials 9159 | -8/Materials | Accompanied by 3 allies 9159 | -8/Materials | Evolved 2 slots: Utility x1, Weapon x1 9160 | -8/Materials | Identified exit to Storage 9161 | -8/Materials | Loaded intel: 12 terminal locations 9260 | -8/Materials | Identified Exp. Sensor Array 9463 | -8/Materials | Build established: Tank 9892 | -8/Materials | Repaired Adv. Beam Rifle 9925 | -8/Materials | Repaired Med. Armor Plating 10332 | -8/Materials | Garrison activated, responded to threat 10387 | -8/Materials | Discovered new exit (range 16) 10606 | -8/Materials | Identified exit to Garrison 10661 | -8/Materials | Discovered new exit (range 13) 10843 | -8/Materials | Central database locked down 11849 | -8/Materials | Entered Garrison 11849 | -8/Garrison | Accompanied by 3 allies 11928 | -8/Garrison | Triggered checkpoint 12009 | -8/Garrison | Garrison Relay disabled 12132 | -8/Garrison | Triggered checkpoint 12134 | -8/Garrison | Triggered checkpoint 12318 | -8/Garrison | Triggered checkpoint 12345 | -8/Garrison | Discovered new exit (range 6) 12360 | -8/Garrison | Triggered checkpoint 12488 | -8/Garrison | Lost 4 parts (2n1u1w) 12559 | -8/Garrison | Discovered new exit (range 10) 12597 | -8/Garrison | Garrison Relay disabled 12642 | -8/Garrison | Triggered checkpoint 12704 | -8/Garrison | Garrison Relay disabled 12753 | -8/Garrison | Discovered new exit (range 15) 12787 | -8/Garrison | Discovered new exit (range 67) 12787 | -8/Garrison | Discovered new exit (range 11) 12787 | -8/Garrison | Discovered new exit (range 81) 12787 | -8/Garrison | Discovered new exit (range 74) 12848 | -8/Garrison | Attempted to access garrison exit controls, blocked by remote lockdown 12975 | -8/Garrison | Build established: Mutant 13058 | -8/Garrison | Triggered checkpoint 13058 | -8/Garrison | Garrison Relay disabled 13073 | -8/Garrison | Garrison Relay disabled 13271 | -8/Garrison | Entered Materials 13271 | -8/Materials | Accompanied by 1 ally 13671 | -8/Materials | First assault squad dispatched 13858 | -8/Materials | Repaired Adv. Beam Rifle 13897 | -8/Materials | Repaired Missile Launcher 13924 | -8/Materials | Repaired Com. Wheel 14059 | -8/Materials | Repaired Arm. Wheel 14185 | -8/Materials | Discovered new exit (range 7) 14259 | -8/Materials | Repaired Hrd. Medium Armor Plating 14330 | -8/Materials | Repaired Hvy. Deuterium Engine 14446 | -8/Materials | Build established: Gunner 14478 | -8/Materials | Core integrity fell below 50% 14516 | -8/Materials | Garrison activated, responded to threat 14711 | -8/Materials | Discovered exit to Storage (range 15) 14825 | -8/Materials | Discovered new exit (range 12) 15031 | -8/Materials | Identified exit to Garrison 15031 | -8/Materials | Entered Garrison 15192 | -8/Garrison | Triggered checkpoint 15279 | -8/Garrison | Lost 4 parts (1n2u1w) 15280 | -8/Garrison | Triggered checkpoint 15366 | -8/Garrison | Triggered checkpoint 15446 | -8/Garrison | Triggered checkpoint 15549 | -8/Garrison | Garrison Relay disabled 15726 | -8/Garrison | Discovered new exit (range 14) 15862 | -8/Garrison | Discovered new exit (range 53) 15862 | -8/Garrison | Discovered new exit (range 51) 15862 | -8/Garrison | Discovered new exit (range 20) 15916 | -8/Garrison | Attempted to access garrison exit controls, blocked by remote lockdown 15999 | -8/Garrison | Garrison Relay disabled 16225 | -8/Garrison | Build established: Hacker-Mutant 16281 | -8/Garrison | Garrison Relay disabled 16371 | -8/Garrison | Entered Materials 16574 | -8/Materials | Repaired Broken Arm. Medium Treads? 16771 | -8/Materials | First assault squad dispatched 16856 | -8/Materials | Destroyed 7 combat bots 17283 | -8/Materials | Core integrity fell below 20% 17643 | -8/Materials | Discovered new exit (range 4) 17785 | -8/Materials | Build established: Tank 17913 | -8/Materials | Entered Storage 18154 | -8/Storage | Repaired Hvy. Armor Plating 18278 | -8/Storage | Discovered new exit (range 7) 18421 | -8/Storage | Met 01-MTF 18739 | -8/Storage | Repaired Lightning Gun 18806 | -8/Storage | Assisted by bots powering up and referring to "LRC-V3" 19113 | -8/Storage | First assault squad dispatched 19556 | -8/Storage | Entered Factory 19556 | -7/Factory | Accompanied by 1 ally (01-MTF) 19556 | -7/Factory | Evolved 2 slots: Utility x2 19561 | -7/Factory | 01-MTF left 19672 | -7/Factory | Discovered new exit (range 7) 19717 | -7/Factory | Build established: Gunner 19973 | -7/Factory | Discovered new exit (range 10) 20031 | -7/Factory | Fabricated Adv. Sensor Array (x1) 20099 | -7/Factory | Fabricated Y-45 Defender (x2) 20560 | -7/Factory | Discovered new exit (range 7) 20692 | -7/Factory | Identified exit to Factory 21193 | -7/Factory | Repaired System Restoration Module? 21404 | -7/Factory | Discovered new exit (range 9) 21413 | -7/Factory | Identified exit to Lower Caves 21634 | -7/Factory | Build established: Skirmisher 22229 | -7/Factory | Build established: Mutant 22500 | -7/Factory | Identified exit to Garrison 22502 | -7/Factory | Entered Garrison 22615 | -7/Garrison | Triggered checkpoint 22715 | -7/Garrison | Garrison Relay disabled 22884 | -7/Garrison | Triggered checkpoint 23178 | -7/Garrison | Garrison Relay disabled 23215 | -7/Garrison | Discovered new exit (range 13) 23344 | -7/Garrison | Triggered checkpoint 23344 | -7/Garrison | Triggered checkpoint 23381 | -7/Garrison | Destroyed 8 combat bots 23382 | -7/Garrison | Lost 3 parts (1u2w) 23681 | -7/Garrison | Garrison Relay disabled 23786 | -7/Garrison | Discovered new exit (range 12) 23800 | -7/Garrison | Identified exit to Factory 24088 | -7/Garrison | Garrison Relay disabled 24148 | -7/Garrison | Discovered exit to Factory (range 11) 24160 | -7/Garrison | Rescued a captive Derelict 24161 | -7/Garrison | Rescued a captive Derelict 24433 | -7/Garrison | Attempted to access garrison exit controls, blocked by remote lockdown 24631 | -7/Garrison | Triggered checkpoint 24655 | -7/Garrison | Entered Factory 24655 | -7/Factory | Accompanied by 2 allies 24789 | -7/Factory | Repaired Arm. Huge Wheel? 24854 | -7/Factory | Discovered exit to Factory (range 60) 25432 | -7/Factory | Garrison activated, responded to threat 25464 | -7/Factory | Core integrity fell below 50% 26192 | -7/Factory | Build established: Skirmisher 26202 | -7/Factory | Garrison activated, responded to threat 26269 | -7/Factory | Entered Lower Caves 26275 | -7/Lower Caves | Met a Warlord Commander 26276 | -7/Lower Caves | Learned location of Warlord (-4) 26278 | -7/Lower Caves | Found Encrypted Comm Array 26399 | -7/Lower Caves | Learned Factory stockpile data 26607 | -7/Lower Caves | Attracted the attention of an 0b10 outpost 26803 | -7/Lower Caves | Encountered a Warlord checkpoint 27013 | -7/Lower Caves | Learned Factory emergency access door positions 27401 | -7/Lower Caves | Attracted the attention of an 0b10 checkpoint 27438 | -7/Lower Caves | Discovered new exit (range 15) 27694 | -7/Lower Caves | Ambushed by wild Derelicts 28045 | -7/Lower Caves | Build established: Mutant 28253 | -7/Lower Caves | Identified exit to Lower Caves 28255 | -7/Lower Caves | Entered another Lower Caves area 28287 | -7/Lower Caves | Discovered exit to Factory (range 13) 28532 | -7/Lower Caves | Encountered a Warlord checkpoint 28558 | -7/Lower Caves | Build established: Skirmisher 29172 | -7/Lower Caves | Discovered new exit (range 12) 29192 | -7/Lower Caves | Identified exit to Zion 29235 | -7/Lower Caves | Learned Factory emergency access door positions 29240 | -7/Lower Caves | Learned Factory stockpile data 29926 | -7/Lower Caves | Entered Zion 29995 | -7/Zion | System corruption cleaned by Quarantine Array 30025 | -7/Zion | System corruption cleaned by Quarantine Array 30050 | -7/Zion | Discovered new exit (range 13) 30368 | -7/Zion | Learned location of Armory (-4) 30592 | -7/Zion | Build established: Mutant 31059 | -7/Zion | Discovered new exit (range 5) 31061 | -7/Zion | Saw the warning signs outside the Deep Caves entrance 31064 | -7/Zion | Identified exit to Deep Caves 31736 | -7/Zion | Found Prototype Device 31983 | -7/Zion | Entered Deep Caves 32163 | -7/Deep Caves | Attacked by Z-Imprinter 32202 | -7/Deep Caves | Destroyed Z-Imprinter 32241 | -7/Deep Caves | Lost 4 parts (3u1w) 32330 | -7/Deep Caves | Identified Mobile Refinery Mk. CCLXVII 32393 | -7/Deep Caves | Z-Facility disabled 32802 | -7/Deep Caves | Discovered new exit (range 6) 32812 | -7/Deep Caves | Build established: Tank 33120 | -7/Deep Caves | Core integrity fell below 20% 33216 | -7/Deep Caves | Spotted as-30412 33259 | -7/Deep Caves | Destroyed by as-30412 with Assembled Focal Cannon Last Messages --------------- 33135_ Acquired 42 matter. 33136_ Acquired 45 matter. 33137_ Acquired 22 matter. 33138_ Acquired 23 matter. 33139_ Acquired 18 matter. 33140_ Acquired 27 matter. 33203_ Acquired 10 matter. 33219_ Dropped Hvy. Linear Accelerator. 33222_ Acquired Hvy. Linear Accelerator. 33224_ Arm. Huge Wheel destroyed. 33225_ as-30412: "DSI9AT1D G8OHIBQ29FWG 26R186 QD12WHW8W33 TDK1 81FTS" 33227_ Zio. Light Carapace destroyed. 33227_ Med. Reactive Plating destroyed. 33251_ Tactical Coordination Suite destroyed. 33253_ Destroyed Prototype Device. 33253_ as-30412 system corrupted by crushing effect. 33253_ as-30412 knocked back. 33254_ as-30412 GOLEM Unit beginning Prototype Device integration. 33254_ Prc. Shock Rifle destroyed. 33255_ as-30412 Prototype Device integration complete. Map ----- +----------------------------------------------------+ | | | | | | | | | | | | | | | | | | | | | | | | | ???????????????????????????????????????????????? | | ???????????????????????????????????????????????? | | ??????????????????????????????############?????? | | ?????????????????????????????## ##????? | | ?????????????????????????????# #????? | | ?????????????????????????????# #????? | | ?????????????????????????????# #?????? | | ?????????? ??????????###????# ##????? | | ?????????? ????????# #?????# ##???? | | ????????? ??????# #????### #??? | | ?????????"" ????# #?#### % ### | | ????????" ??# #?# # | | ????????" # ##### | | ????????" = @ ; # #### | | ????????# G #######??# | | ?????????" ;#???????## | | ?????????" ####???????# | | ?????????" h ???????????# # | | ?????????? g #??????????## ### | | ?????????? ??????????## ##?? | | ?????????? / / ????????### #### ##??? | | ??????????? ???????## ##???###???? | | ??????????? ???????# ##??????????? | | ???????????? ????????# #?????####### | | ???????????? / ????????# ##???### # < | | ?????????????? ????????# ##????# ! | | ???????????????? ?????????# #?????# ### | | ??????????????????? ?????????# ##????## ###?? | | ?????????????????????????????## #?????# ##### | | ??????????????????????????????# #????## # | | ??????????????????????????????# #???## | | ??????????????????????????????# #??## | | ???????????????????? ????????# #??# # | | ???????????????????? ???????## ##??# ##### | | ??????????????????? ?????## ##??# #???? | | ??????????????????? / ????# ##?## ##?## | | ?????????????????? ???# #??# #?# | | ????????????????? / ??# #??# #?# | +----------------------------------------------------+ Best States ------------- Heat Dissipation 61 Coolant Potential 80 Energy Generation 18 Energy Capacity 515 Matter Stores 300 Matter Capacity 300 Sight Range 16 Robot Scan Range 20 Terrain Scan Range 16 Terrain Scan Density 10 Jamming Range 12 Base Temperature (-) 100 Corruption Block 8 Armor Coverage 1050 Resistance: KI 30 Propulsion Shielding 33 Evasion (%) 55 Targeting Accuracy 8 Recoil Reduction 2 Offensive Hacking 10 Defensive Hacking 14 Authchip Count 1 Item Schematics ----------------- Imp. EM Shotgun | -9/Materials | Scanalyzed Hvy. Ion Engine | -9/Materials | Scanalyzed EMP Blaster | -9/Materials | Scanalyzed Exp. Sensor Array | -8/Materials | Scanalyzed Adv. System Shield | -8/Materials | Scanalyzed Hvy. Phase Cannon | -8/Materials | Scanalyzed Hcp. Battery | -8/Materials | Scanalyzed Hrd. Medium Armor Plating | -8/Materials | Scanalyzed Arm. Medium Treads | -8/Materials | Scanalyzed Arm. Huge Wheel | -8/Materials | Scanalyzed Adv. EMP Blaster | -8/Materials | Scanalyzed Core Analyzer | -8/Storage | Hacked Coolant Injector | -8/Storage | Hacked Imp. Medium Armor Plating | -8/Storage | Hacked Hvy. Rocket Launcher | -8/Storage | Hacked Drone Bay | -7/Factory | Scanalyzed Imp. Cooling System | -7/Factory | Hacked Imp. Particle Charger | -7/Zion | Archive Remote Datajack | -7/Zion | Archive Hvy. Ion Cannon | -7/Zion | Archive Imp. Medium Treads | -7/Zion | Archive Imp. Launcher Guidance Computer | -7/Zion | Archive Adv. Assault Cannon | -7/Zion | Archive Hvy. Pick | -7/Zion | Archive Mak. Leg | -7/Zion | Archive Adv. Signal Interpreter | -7/Zion | Archive Mak. Armor Plating | -7/Zion | Archive Imp. Proton Missile Launcher | -7/Zion | Archive Remote Shield | -7/Zion | Archive Variable Charge Gun | -7/Zion | Archive Robot Schematics ------------------ Y-45 Defender | -9/Mines | Hacked A-02 Transporter | -7/Zion | Archive G-47 Trooper | -7/Zion | Archive T-07 Excavator | -7/Zion | Archive Y-72 Warden | -7/Zion | Archive Fabricated ------------ Adv. Sensor Array | x1 | -7/Factory | Preloaded Y-45 Defender | x2 | -7/Factory | Authchip Alien Tech Used ----------------- None Achievements -------------- None Challenges ------------ None Game ------ Seed LayeredCouplerDisintegrator Manual? 0 Play Time 04:05:13 Cumulative 656.0 hours Start 2023.04.28 @ 00:22:18 End 2023.04.30 @ 23:38:59 Sessions 3 Manual Loads 0 Difficulty Rogue Special Mode None Game No. 441 Rogue 441 Adventurer 0 Explorer 0 Win Type - Total 1 Types 1/0/0/0/0/0/0/0/0 Lore% 71 Gallery% 79 Achievement% 60 Wizard Run 0 Options --------- ASCII 0 Keyboard 0 Movement Mouse Keybinds 0 Fullscreen 1 Font 16/SmallcapsGlow Map View 75x55 Tactical HUD 1 Map Filters NONE Filters NONE Steam 1 RUN: ca47b61c-1f47-47ff-80c0-48f253c4f000